Workbook

Sheet YTD SUMMARY
B2: 2013 ACTUAL VS. BUDGET YTD
B4: G/L Expense | C4: Account Title | D4: Actual | E4: Budget | F4: Budget $ | G4: Budget %
B5: 1000 | C5: =VLOOKUP(tblYTD[[#This Row],[G/L Expense]],GL_List,2,0) -> Office | D5: =SUMIF(tblData[G/L - Expense],tblYTD[[#This Row],[G/L Expense]],tblData[Amount of Check]) -> $150.00 | E5: =VLOOKUP(tblYTD[[#This Row],[G/L Expense]],tblListData[],3,0) -> $50,000.00 | F5: =tblYTD[[#This Row],[Budget]]-tblYTD[[#This Row],[Actual]] -> $49,850.00 | G5: =tblYTD[[#This Row],[Budget $]]/tblYTD[[#This Row],[Budget]] -> 99.70%
B6: 2000 | C6: =VLOOKUP(tblYTD[[#This Row],[G/L Expense]],GL_List,2,0) -> Store | D6: =SUMIF(tblData[G/L - Expense],tblYTD[[#This Row],[G/L Expense]],tblData[Amount of Check]) -> $2,905.27 | E6: =VLOOKUP(tblYTD[[#This Row],[G/L Expense]],tblListData[],3,0) -> $75,000.00 | F6: =tblYTD[[#This Row],[Budget]]-tblYTD[[#This Row],[Actual]] -> $72,094.73 | G6: =tblYTD[[#This Row],[Budget $]]/tblYTD[[#This Row],[Budget]] -> 96.13%
B7: 3000 | C7: =VLOOKUP(tblYTD[[#This Row],[G/L Expense]],GL_List,2,0) -> Staffing | D7: =SUMIF(tblData[G/L - Expense],tblYTD[[#This Row],[G/L Expense]],tblData[Amount of Check]) -> $5,500.00 | E7: =VLOOKUP(tblYTD[[#This Row],[G/L Expense]],tblListData[],3,0) -> $100,000.00 | F7: =tblYTD[[#This Row],[Budget]]-tblYTD[[#This Row],[Actual]] -> $94,500.00 | G7: =tblYTD[[#This Row],[Budget $]]/tblYTD[[#This Row],[Budget]] -> 94.50%
B8: 4000 | C8: =VLOOKUP(tblYTD[[#This Row],[G/L Expense]],GL_List,2,0) -> Equipment | D8: =SUMIF(tblData[G/L - Expense],tblYTD[[#This Row],[G/L Expense]],tblData[Amount of Check]) -> $1,854.00 | E8: =VLOOKUP(tblYTD[[#This Row],[G/L Expense]],tblListData[],3,0) -> $25,000.00 | F8: =tblYTD[[#This Row],[Budget]]-tblYTD[[#This Row],[Actual]] -> $23,146.00 | G8: =tblYTD[[#This Row],[Budget $]]/tblYTD[[#This Row],[Budget]] -> 92.58%
B9: 5000 | C9: =VLOOKUP(tblYTD[[#This Row],[G/L Expense]],GL_List,2,0) -> Other | D9: =SUMIF(tblData[G/L - Expense],tblYTD[[#This Row],[G/L Expense]],tblData[Amount of Check]) -> $35.60 | E9: =VLOOKUP(tblYTD[[#This Row],[G/L Expense]],tblListData[],3,0) -> $50,000.00 | F9: =tblYTD[[#This Row],[Budget]]-tblYTD[[#This Row],[Actual]] -> $49,964.40 | G9: =tblYTD[[#This Row],[Budget $]]/tblYTD[[#This Row],[Budget]] -> 99.93%
B10: Total | D10: =SUBTOTAL(109,tblYTD[Actual]) -> $10,444.87 | E10: =SUBTOTAL(109,tblYTD[Budget]) -> $300,000.00 | F10: =SUBTOTAL(109,tblYTD[Budget $]) -> $289,555.13

Sheet MONTHLY EXPENSES
B2: G/L MONTHLY EXPENSE SUMMARY
B19: Sum of Amount of Check | C19: Month
B20: G/L - Expense | C20: Jan | D20: Feb | E20: Mar | F20: Grand Total
B21: 1000 | C21: $100.00 | D21: $50.00 | F21: $150.00
B22: 2000 | C22: $905.27 | D22: $2,000.00 | F22: $2,905.27
B23: 3000 | D23: $2,500.00 | E23: $3,000.00 | F23: $5,500.00
B24: 4000 | C24: $1,854.00 | F24: $1,854.00
B25: 5000 | C25: $35.60 | F25: $35.60
B26: Grand Total | C26: $2,894.87 | D26: $4,550.00 | E26: $3,000.00 | F26: $10,444.87

Sheet GL EXPENSE DATA
B2: G/L EXPENSE DATA
B4: G/L - Expense | C4: Account Title | D4: Invoice Date | E4: Month | F4: Invoice # | G4: Requested by | H4: Amount of Check | I4: Name of Payee | J4: Check Use | K4: Method of Distribution | L4: File Date
B5: 1000 | C5: =IFERROR(VLOOKUP(tblData[[#This Row],[G/L - Expense]],GL_List,2,0),"") -> Office | D5: 4128900.00% | E5: =IF(tblData[[#This Row],[Account Title]]="","",TEXT(tblData[[#This Row],[Invoice Date]],"mmm")) -> Jan | F5: 1 | G5: David Daniels | H5: $100.00 | I5: Consolidated Messenger | J5: Blank CDs | K5: Credit | L5: 4129400.00%
B6: 1000 | C6: =IFERROR(VLOOKUP(tblData[[#This Row],[G/L - Expense]],GL_List,2,0),"") -> Office | D6: 4131200.00% | E6: =IF(tblData[[#This Row],[Account Title]]="","",TEXT(tblData[[#This Row],[Invoice Date]],"mmm")) -> Feb | F6: 5 | G6: David Daniels | H6: $50.00 | I6: Consolidated Messenger | J6: Printer ink | K6: Credit | L6: 4131500.00%
B7: 2000 | C7: =IFERROR(VLOOKUP(tblData[[#This Row],[G/L - Expense]],GL_List,2,0),"") -> Store | D7: 4129100.00% | E7: =IF(tblData[[#This Row],[Account Title]]="","",TEXT(tblData[[#This Row],[Invoice Date]],"mmm")) -> Jan | F7: 2 | G7: Marc Faeber | H7: $550.00 | I7: Fabrikam, Inc. | J7: Replace store window | K7: Credit | L7: 4129400.00%
B8: 2000 | C8: =IFERROR(VLOOKUP(tblData[[#This Row],[G/L - Expense]],GL_List,2,0),"") -> Store | D8: 4129300.00% | E8: =IF(tblData[[#This Row],[Account Title]]="","",TEXT(tblData[[#This Row],[Invoice Date]],"mmm")) -> Jan | F8: 3 | G8: Marc Faeber | H8: $355.27 | I8: A. Datum Corporation | J8: New cash register | K8: Credit | L8: 4129400.00%
B9: 3000 | C9: =IFERROR(VLOOKUP(tblData[[#This Row],[G/L - Expense]],GL_List,2,0),"") -> Staffing | D9: 4131500.00% | E9: =IF(tblData[[#This Row],[Account Title]]="","",TEXT(tblData[[#This Row],[Invoice Date]],"mmm")) -> Feb | F9: 6 | G9: Robert O'Hara | H9: $2,500.00 | I9: Graphic Design Institute | J9: contract designer | K9: Check | L9: 4132500.00%
B10: 4000 | C10: =IFERROR(VLOOKUP(tblData[[#This Row],[G/L - Expense]],GL_List,2,0),"") -> Equipment | D10: 4129900.00% | E10: =IF(tblData[[#This Row],[Account Title]]="","",TEXT(tblData[[#This Row],[Invoice Date]],"mmm")) -> Jan | F10: 5 | G10: Robert Walters | H10: $1,854.00 | I10: Trey Research | J10: New laptop | K10: Credit | L10: 4129900.00%
B11: 5000 | C11: =IFERROR(VLOOKUP(tblData[[#This Row],[G/L - Expense]],GL_List,2,0),"") -> Other | D11: 4129700.00% | E11: =IF(tblData[[#This Row],[Account Title]]="","",TEXT(tblData[[#This Row],[Invoice Date]],"mmm")) -> Jan | F11: 4 | G11: Bob Gage | H11: $35.60 | I11: Bob Gage | J11: Cab fare | K11: Check | L11: 4129700.00%
B12: 2000 | C12: =IFERROR(VLOOKUP(tblData[[#This Row],[G/L - Expense]],GL_List,2,0),"") -> Store | D12: 4130600.00% | E12: =IF(tblData[[#This Row],[Account Title]]="","",TEXT(tblData[[#This Row],[Invoice Date]],"mmm")) -> Feb | F12: 7 | G12: Bob Gage | H12: $2,000.00 | I12: Bob Gage | J12: Cab fare | K12: Check | L12: 4130700.00%
B13: 3000 | C13: =IFERROR(VLOOKUP(tblData[[#This Row],[G/L - Expense]],GL_List,2,0),"") -> Staffing | D13: 4133400.00% | E13: =IF(tblData[[#This Row],[Account Title]]="","",TEXT(tblData[[#This Row],[Invoice Date]],"mmm")) -> Mar | F13: 8 | G13: Bob Gage | H13: $3,000.00 | I13: Bob Gage | J13: Cab fare | K13: Check | L13: 4133500.00%

Sheet GL LIST
B2: G/L ACCOUNT TITLES
B4: G/L - Expense | C4: Account Title | D4: Budget
B5: 1000 | C5: Office | D5: $50,000.00
B6: 2000 | C6: Store | D6: $75,000.00
B7: 3000 | C7: Staffing | D7: $100,000.00
B8: 4000 | C8: Equipment | D8: $25,000.00
B9: 5000 | C9: Other | D9: $50,000.00
